[Event "Kragero Resort Chess A 2019"]
[Site "Kragero"]
[Date "2019.02.23"]
[Round "7.21"]
[White "Holleland, Sigve"]
[Black "Skotheim, Andreas"]
[Result "0-1"]
[ECO "A18"]
[WhiteElo "2009"]
[BlackElo "2168"]
[Annotator "NA"]
[PlyCount "82"]
[EventDate "2019.02.20"]
[EventType "swiss"]
[EventCountry "NOR"]
[SourceTitle "playchess.com"]
[Source "ChessBase"]
[SourceQuality "1"]
[TimeControl "5400+30"]

1. c4 {[%emt 0:00:23]} Nf6 {[%emt 0:00:00]} 2. Nc3 {[%emt 0:00:08]} e6 {[%emt 0:00:00]} 3. e4 {[%emt 0:00:04]} d5 {[%emt 0:00:06]} 4. cxd5 {[%emt 0:00:20]} exd5 {[%emt 0:00:07]} 5. e5 {[%emt 0:00:05]} d4 {[%emt 0:00:25]} 6. exf6 {[%emt 0:00:54]} dxc3 {[%emt 0:00:18]} 7. Bb5+ {[%emt 0:02:51]} Nc6 {[%emt 0:03:54]} 8. Qe2+ {[%emt 0:06:36]} Be6 {[%emt 0:00:18]} 9. Bxc6+ {[%emt 0:07:19]} bxc6 {[%emt 0:00:07]} 10. dxc3 {[%emt 0:00:10]} Qd5 {[%emt 0:12:05]} 11. Nf3 {[%emt 0:01:43]} gxf6 {[%emt 0:03:33]} 12. Bf4 {[%emt 0:06:07]} Bd6 {[%emt 0:06:01]} 13. Bg3 {[%emt 0:07:17]} c5 {[%emt 0:11:31]} 14. O-O {[%emt 0:02:40]} Qc6 {[%emt 0:09:27]} 15. b4 {[%emt 0:10:46]} O-O {[%emt 0:02:50]} 16. b5 {[%emt 0:10:32]} Qb7 {[%emt 0:03:01]} 17. Bh4 {[%emt 0:01:18]} Kg7 {[%emt 0:00:27]} 18. c4 {[%emt 0:03:50]} Rg8 {[%emt 0:05:42]} 19. Qb2 {[%emt 0:08:58]} Be7 {[%emt 0:01:32]} 20. Nd2 {[%emt 0:03:44]} Rad8 {[%emt 0:03:09]} 21. f3 {[%emt 0:06:02]} Qb6 {[%emt 0:02:41]} 22. Rad1 {[%emt 0:04:57]} Qd6 {[%emt 0:01:33]} 23. Ne4 {[%emt 0:00:49]} Qf4 {[%emt 0:01:33]} 24. Bg3 {[%emt 0:02:19]} Qf5 {[%emt 0:02:30]} 25. Qc3 {[%emt 0:01:31]} Rc8 {[%emt 0:03:00]} 26. Rfe1 {[%emt 0:01:43]} Rgd8 {[%emt 0:01:47]} 27. a4 {[%emt 0:00:48]} h5 {[%emt 0:02:54]} 28. Kf2 {[%emt 0:01:25]} Qg6 {[%emt 0:01:22]} 29. Bh4 {[%emt 0:00:58]} Bf5 {[%emt 0:00:47]} 30. Ng3 {[%emt 0:01:31]} Be6 {[%emt 0:00:52]} 31. f4 {[%emt 0:01:47]} Rxd1 {[%emt 0:00:58]} 32. Rxd1 {[%emt 0:00:36]} Qg4 {[%emt 0:00:24]} 33. Re1 {[%emt 0:03:13]} Qxf4+ {[%emt 0:01:55]} 34. Qf3 {[%emt 0:01:19]} Qxh4 {[%emt 0:01:11]} 35. Re4 {[%emt 0:00:03]} Bg4 {[%emt 0:00:36]} 36. Qd3 {[%emt 0:02:27]} Bd6 {[%emt 0:00:26]} 37. Qd5 {[%emt 0:00:21]} Bxg3+ {[%emt 0:00:43]} 38. hxg3 {[%emt 0:00:04]} Qg5 {[%emt 0:00:13]} 39. Qb7 {[%emt 0:00:04]} Rd8 {[%emt 0:02:19]} 40. Qxc7 {[%emt 0:00:16]} Qd2+ {[%emt 0:00:33]} 41. Kg1 {[%emt 0:00:09]} Qc1+ {[%emt 0:00:08]} 0-1

[Event "Kragero Resort Chess A 2019"]
[Site "Kragero"]
[Date "2019.02.23"]
[Round "7.22"]
[White "Gonzalez, Francisco Silva"]
[Black "Shehzad, Shazil"]
[Result "1-0"]
[ECO "A57"]
[WhiteElo "2142"]
[BlackElo "1959"]
[Annotator "NA"]
[PlyCount "73"]
[EventDate "2019.02.20"]
[EventType "swiss"]
[EventCountry "NOR"]
[SourceTitle "playchess.com"]
[Source "ChessBase"]
[SourceQuality "1"]
[TimeControl "5400+30"]

1. d4 {[%emt 0:08:12]} Nf6 {[%emt 0:00:00]} 2. c4 {[%emt 0:00:06]} c5 {[%emt 0:00:00]} 3. d5 {[%emt 0:00:48]} b5 {[%emt 0:00:00]} 4. cxb5 {[%emt 0:00:11]} a6 {[%emt 0:00:08]} 5. b6 {[%emt 0:00:22]} e6 {[%emt 0:01:01]} 6. Nc3 {[%emt 0:00:08]} Nxd5 {[%emt 0:00:22]} 7. Nxd5 {[%emt 0:00:17]} exd5 {[%emt 0:00:07]} 8. Qxd5 {[%emt 0:00:20]} Nc6 {[%emt 0:00:08]} 9. Nf3 {[%emt 0:00:10]} Rb8 {[%emt 0:00:21]} 10. e4 {[%emt 0:01:18]} Be7 {[%emt 0:00:08]} 11. Bc4 {[%emt 0:00:11]} O-O {[%emt 0:00:07]} 12. O-O {[%emt 0:00:08]} Rxb6 {[%emt 0:00:19]} 13. b3 {[%emt 0:10:06]} d6 {[%emt 0:01:00]} 14. Qh5 {[%emt 0:01:53]} Be6 {[%emt 0:05:22]} 15. Ng5 {[%emt 0:02:01]} Bxg5 {[%emt 0:00:08]} 16. Bxg5 {[%emt 0:00:07]} Qd7 {[%emt 0:00:31]} 17. Rac1 {[%emt 0:03:21]} Bxc4 {[%emt 0:00:39]} 18. Rxc4 {[%emt 0:00:21]} Qe6 {[%emt 0:00:41]} 19. Bf4 {[%emt 0:01:58]} Nd4 {[%emt 0:03:15]} 20. Re1 {[%emt 0:04:04]} f6 {[%emt 0:08:40]} 21. Qd1 {[%emt 0:01:08]} Re8 {[%emt 0:01:48]} 22. f3 {[%emt 0:00:49]} Kf7 {[%emt 0:03:59]} 23. Bg3 {[%emt 0:00:21]} a5 {[%emt 0:01:15]} 24. Ra4 {[%emt 0:01:12]} Ra8 {[%emt 0:00:51]} 25. Bf2 {[%emt 0:00:47]} Nc6 {[%emt 0:01:36]} 26. Rc4 {[%emt 0:03:58]} Rb4 {[%emt 0:01:55]} 27. f4 {[%emt 0:03:27]} Rxc4 {[%emt 0:01:38]} 28. f5 {[%emt 0:00:16]} Qd7 {[%emt 0:07:29]} 29. Qd5+ {[%emt 0:00:59]} Ke7 {[%emt 0:01:53]} 30. bxc4 {[%emt 0:01:52]} Rb8 {[%emt 0:01:37]} 31. a3 {[%emt 0:00:23]} a4 {[%emt 0:04:55]} 32. Rd1 {[%emt 0:00:10]} Ne5 {[%emt 0:00:17]} 33. Bxc5 {[%emt 0:00:56]} Nf7 {[%emt 0:03:53]} 34. Bb4 {[%emt 0:00:44]} Rd8 {[%emt 0:00:28]} 35. c5 {[%emt 0:02:48]} dxc5 {[%emt 0:00:21]} 36. Qxc5+ {[%emt 0:00:53]} Nd6 {[%emt 0:00:07]} 37. Rxd6 {[%emt 0:00:26]} 1-0

[Event "Kragero Resort Chess A 2019"]
[Site "Kragero"]
[Date "2019.02.23"]
[Round "7.23"]
[White "Boe, Oeyvind"]
[Black "Rishovd, Svein"]
[Result "0-1"]
[ECO "E04"]
[WhiteElo "1908"]
[BlackElo "2116"]
[Annotator "NA"]
[PlyCount "74"]
[EventDate "2019.02.20"]
[EventType "swiss"]
[EventCountry "NOR"]
[SourceTitle "playchess.com"]
[Source "ChessBase"]
[SourceQuality "1"]
[TimeControl "5400+30"]

1. d4 {[%emt 0:00:00]} e6 {[%emt 0:00:00]} 2. Nf3 {[%emt 0:00:00]} d5 {[%emt 0:00:00]} 3. c4 {[%emt 0:00:11]} Nf6 {[%emt 0:00:19]} 4. g3 {[%emt 0:00:10]} dxc4 {[%emt 0:00:21]} 5. Bg2 {[%emt 0:00:39]} Bb4+ {[%emt 0:00:28]} 6. Bd2 {[%emt 0:00:29]} a5 {[%emt 0:00:18]} 7. a3 {[%emt 0:01:58]} Bxd2+ {[%emt 0:01:02]} 8. Nbxd2 {[%emt 0:00:58]} b5 {[%emt 0:01:32]} 9. a4 {[%emt 0:05:16]} c6 {[%emt 0:02:17]} 10. O-O {[%emt 0:03:19]} O-O {[%emt 0:01:19]} 11. Ne5 {[%emt 0:06:59]} Ra6 {[%emt 0:00:53]} 12. e3 {[%emt 0:04:43]} Nd5 {[%emt 0:02:01]} 13. b3 {[%emt 0:04:30]} cxb3 {[%emt 0:01:45]} 14. Qxb3 {[%emt 0:03:23]} Nb4 {[%emt 0:02:53]} 15. Rfc1 {[%emt 0:04:01]} Qb6 {[%emt 0:07:06]} 16. Ne4 {[%emt 0:04:25]} Ra7 {[%emt 0:07:29]} 17. Nd6 {[%emt 0:09:49]} Bd7 {[%emt 0:06:15]} 18. Qc3 {[%emt 0:11:20]} Nd5 {[%emt 0:09:08]} 19. Qc5 {[%emt 0:00:06]} Qxc5 {[%emt 0:02:01]} 20. Rxc5 {[%emt 0:03:19]} f6 {[%emt 0:08:00]} 21. Nd3 {[%emt 0:04:27]} Na6 {[%emt 0:02:51]} 22. Rcc1 {[%emt 0:00:19]} b4 {[%emt 0:00:36]} 23. Nc5 {[%emt 0:08:23]} Nc3 {[%emt 0:02:28]} 24. Rc2 {[%emt 0:00:58]} Nxc5 {[%emt 0:00:36]} 25. dxc5 {[%emt 0:00:05]} e5 {[%emt 0:00:43]} 26. h3 {[%emt 0:02:37]} Be6 {[%emt 0:02:54]} 27. Bxc6 {[%emt 0:01:29]} Rc7 {[%emt 0:01:19]} 28. Rxc3 {[%emt 0:05:41]} bxc3 {[%emt 0:00:29]} 29. Bb5 {[%emt 0:00:10]} Rxc5 {[%emt 0:02:16]} 30. Ne4 {[%emt 0:00:07]} Rc7 {[%emt 0:01:17]} 31. Rc1 {[%emt 0:00:21]} c2 {[%emt 0:00:21]} 32. h4 {[%emt 0:02:05]} Rd8 {[%emt 0:00:16]} 33. Be2 {[%emt 0:02:13]} Bb3 {[%emt 0:05:07]} 34. Kf1 {[%emt 0:00:09]} Rd1+ {[%emt 0:00:50]} 35. Bxd1 {[%emt 0:00:26]} cxd1=Q+ {[%emt 0:00:10]} 36. Rxd1 {[%emt 0:00:14]} Bxd1 {[%emt 0:00:06]} 37. Ke1 {[%emt 0:00:34]} Bxa4 {[%emt 0:00:02]} 0-1

[Event "Kragero Resort Chess A 2019"]
[Site "Kragero"]
[Date "2019.02.23"]
[Round "7.24"]
[White "Aarnes, Eirik"]
[Black "Birkisson, Bardur Orn"]
[Result "1-0"]
[ECO "C69"]
[WhiteElo "1843"]
[BlackElo "2233"]
[Annotator "NA"]
[PlyCount "103"]
[EventDate "2019.02.20"]
[EventType "swiss"]
[EventCountry "NOR"]
[SourceTitle "playchess.com"]
[Source "ChessBase"]
[SourceQuality "1"]
[TimeControl "5400+30"]

1. e4 {[%emt 0:00:00]} e5 {[%emt 0:00:05]} 2. Nf3 {[%emt 0:00:00]} Nc6 {[%emt 0:00:08]} 3. Bb5 {[%emt 0:00:00]} a6 {[%emt 0:00:23]} 4. Bxc6 {[%emt 0:00:00]} dxc6 {[%emt 0:00:07]} 5. O-O {[%emt 0:00:00]} f6 {[%emt 0:00:14]} 6. d4 {[%emt 0:00:00]} exd4 {[%emt 0:00:19]} 7. Nxd4 {[%emt 0:00:03]} c5 {[%emt 0:00:06]} 8. Nb3 {[%emt 0:00:04]} Qxd1 {[%emt 0:00:15]} 9. Rxd1 {[%emt 0:00:06]} Bd7 {[%emt 0:01:03]} 10. Nc3 {[%emt 0:01:38]} O-O-O {[%emt 0:04:01]} 11. Be3 {[%emt 0:02:07]} b6 {[%emt 0:01:00]} 12. a4 {[%emt 0:00:49]} a5 {[%emt 0:01:45]} 13. Nd2 {[%emt 0:07:16]} Ne7 {[%emt 0:04:00]} 14. Nc4 {[%emt 0:04:23]} Re8 {[%emt 0:04:16]} 15. Nb5 {[%emt 0:07:49]} Bxb5 {[%emt 0:08:52]} 16. axb5 {[%emt 0:00:05]} Ng6 {[%emt 0:05:22]} 17. f3 {[%emt 0:01:27]} Ne5 {[%emt 0:04:04]} 18. Nxe5 {[%emt 0:00:29]} Rxe5 {[%emt 0:00:09]} 19. Bf4 {[%emt 0:00:56]} Re6 {[%emt 0:01:18]} 20. Rd5 {[%emt 0:09:59]} Bd6 {[%emt 0:03:56]} 21. Be3 {[%emt 0:00:09]} g6 {[%emt 0:05:21]} 22. Bf2 {[%emt 0:13:47]} h5 {[%emt 0:03:09]} 23. Rad1 {[%emt 0:03:05]} Rhe8 {[%emt 0:09:09]} 24. Bg3 {[%emt 0:05:35]} Bxg3 {[%emt 0:01:02]} 25. hxg3 {[%emt 0:00:04]} Re5 {[%emt 0:00:40]} 26. c4 {[%emt 0:10:54]} Rxd5 {[%emt 0:05:54]} 27. Rxd5 {[%emt 0:00:14]} Re6 {[%emt 0:00:13]} 28. Kf2 {[%emt 0:00:58]} c6 {[%emt 0:00:11]} 29. bxc6 {[%emt 0:00:11]} Kc7 {[%emt 0:01:53]} 30. Rd7+ {[%emt 0:00:07]} Kxc6 {[%emt 0:00:07]} 31. Rg7 {[%emt 0:00:27]} g5 {[%emt 0:02:45]} 32. Ke3 {[%emt 0:01:55]} Rd6 {[%emt 0:01:21]} 33. f4 {[%emt 0:01:16]} b5 {[%emt 0:09:43]} 34. e5 {[%emt 0:05:36]} Re6 {[%emt 0:01:58]} 35. cxb5+ {[%emt 0:00:10]} Kxb5 {[%emt 0:00:30]} 36. Ke4 {[%emt 0:00:06]} gxf4 {[%emt 0:00:36]} 37. gxf4 {[%emt 0:00:09]} fxe5 {[%emt 0:00:16]} 38. Kd5 {[%emt 0:01:50]} Rb6 {[%emt 0:01:26]} 39. fxe5 {[%emt 0:00:24]} Ka4 {[%emt 0:00:24]} 40. e6 {[%emt 0:00:27]} Rxb2 {[%emt 0:00:07]} 41. Kxc5 {[%emt 0:01:46]} Re2 {[%emt 0:02:32]} 42. Kd6 {[%emt 0:00:17]} Kb3 {[%emt 0:00:28]} 43. Rb7+ {[%emt 0:05:07]} Ka3 {[%emt 0:00:59]} 44. e7 {[%emt 0:00:40]} Rd2+ {[%emt 0:00:52]} 45. Kc7 {[%emt 0:00:09]} Re2 {[%emt 0:02:07]} 46. Kd8 {[%emt 0:00:08]} a4 {[%emt 0:00:49]} 47. e8=Q {[%emt 0:00:14]} Rxe8+ {[%emt 0:00:09]} 48. Kxe8 {[%emt 0:00:09]} Ka2 {[%emt 0:00:07]} 49. Kf7 {[%emt 0:00:15]} a3 {[%emt 0:00:09]} 50. Kg6 {[%emt 0:00:08]} h4 {[%emt 0:00:10]} 51. Kg5 {[%emt 0:00:05]} Ka1 {[%emt 0:00:09]} 52. Ra7 {[%emt 0:00:06]} 1-0

[Event "Kragero Resort Chess A 2019"]
[Site "Kragero"]
[Date "2019.02.23"]
[Round "7.25"]
[White "Heimisson, Hilmir Freyr"]
[Black "Mkrtchyan, Anahit D."]
[Result "1-0"]
[ECO "D37"]
[WhiteElo "2394"]
[BlackElo "1841"]
[Annotator "NA"]
[PlyCount "117"]
[EventDate "2019.02.20"]
[EventType "swiss"]
[EventCountry "NOR"]
[SourceTitle "playchess.com"]
[Source "ChessBase"]
[SourceQuality "1"]
[TimeControl "5400+30"]

1. Nf3 {[%emt 0:01:25]} Nf6 {[%emt 0:00:00]} 2. c4 {[%emt 0:00:36]} e6 {[%emt 0:00:00]} 3. Nc3 {[%emt 0:01:14]} d5 {[%emt 0:00:06]} 4. d4 {[%emt 0:00:11]} Be7 {[%emt 0:02:46]} 5. Bf4 {[%emt 0:02:37]} dxc4 {[%emt 0:02:05]} 6. e4 {[%emt 0:11:26]} a6 {[%emt 0:02:36]} 7. a4 {[%emt 0:03:42]} O-O {[%emt 0:05:30]} 8. Bxc4 {[%emt 0:00:37]} c5 {[%emt 0:02:08]} 9. O-O {[%emt 0:05:34]} Qb6 {[%emt 0:09:54]} 10. a5 {[%emt 0:15:38]} Qb4 {[%emt 0:13:04]} 11. Ra4 {[%emt 0:06:14]} Qxb2 {[%emt 0:00:10]} 12. Qd3 {[%emt 0:08:32]} b5 {[%emt 0:07:45]} 13. Rb1 {[%emt 0:02:52]} Qxb1+ {[%emt 0:12:44]} 14. Qxb1 {[%emt 0:00:09]} bxa4 {[%emt 0:00:07]} 15. Bxb8 {[%emt 0:00:09]} Bd7 {[%emt 0:00:53]} 16. Be5 {[%emt 0:01:35]} cxd4 {[%emt 0:01:10]} 17. Bxd4 {[%emt 0:01:34]} Rfb8 {[%emt 0:03:29]} 18. Qd1 {[%emt 0:00:40]} Rb4 {[%emt 0:04:57]} 19. Ba2 {[%emt 0:13:23]} Bb5 {[%emt 0:02:02]} 20. h3 {[%emt 0:05:06]} Rc8 {[%emt 0:09:08]} 21. Ne1 {[%emt 0:04:28]} Bc6 {[%emt 0:07:44]} 22. Nc2 {[%emt 0:00:39]} Rb7 {[%emt 0:00:40]} 23. Qe2 {[%emt 0:02:30]} Ra8 {[%emt 0:04:23]} 24. Bb6 {[%emt 0:01:38]} Nd7 {[%emt 0:02:12]} 25. Nd4 {[%emt 0:00:22]} Nxb6 {[%emt 0:00:51]} 26. Nxc6 {[%emt 0:00:12]} Nc8 {[%emt 0:01:53]} 27. Nxa4 {[%emt 0:01:30]} Bf8 {[%emt 0:03:26]} 28. e5 {[%emt 0:00:40]} Ne7 {[%emt 0:00:26]} 29. Nxe7+ {[%emt 0:00:32]} Bxe7 {[%emt 0:00:10]} 30. Nb6 {[%emt 0:00:23]} Raa7 {[%emt 0:00:19]} 31. Bc4 {[%emt 0:02:37]} Bb4 {[%emt 0:00:21]} 32. Bxa6 {[%emt 0:00:19]} Rc7 {[%emt 0:00:32]} 33. Qb5 {[%emt 0:00:26]} Bf8 {[%emt 0:00:25]} 34. Na4 {[%emt 0:00:35]} Rd7 {[%emt 0:01:30]} 35. Nb6 {[%emt 0:01:14]} Rdc7 {[%emt 0:00:06]} 36. Nc4 {[%emt 0:00:54]} g6 {[%emt 0:01:23]} 37. Qb8 {[%emt 0:01:21]} Kg7 {[%emt 0:00:29]} 38. Kh2 {[%emt 0:01:04]} Bc5 {[%emt 0:00:36]} 39. Nd6 {[%emt 0:00:57]} Re7 {[%emt 0:00:35]} 40. Nc8 {[%emt 0:01:26]} Rxa6 {[%emt 0:00:07]} 41. Nxe7 {[%emt 0:00:03]} Bxe7 {[%emt 0:00:07]} 42. Qb7 {[%emt 0:00:04]} Rxa5 {[%emt 0:00:09]} 43. Qxe7 {[%emt 0:00:05]} Rxe5 {[%emt 0:00:04]} 44. Kg3 {[%emt 0:00:41]} h5 {[%emt 0:00:10]} 45. Qa7 {[%emt 0:00:22]} Rg5+ {[%emt 0:00:28]} 46. Kh2 {[%emt 0:00:05]} Rf5 {[%emt 0:00:07]} 47. Qd4+ {[%emt 0:00:35]} Kh7 {[%emt 0:00:23]} 48. f4 {[%emt 0:00:28]} Rd5 {[%emt 0:00:23]} 49. Qb4 {[%emt 0:00:09]} Rf5 {[%emt 0:00:28]} 50. g4 {[%emt 0:00:29]} hxg4 {[%emt 0:00:03]} 51. hxg4 {[%emt 0:00:03]} Rd5 {[%emt 0:00:12]} 52. Qf8 {[%emt 0:00:24]} Rd7 {[%emt 0:00:57]} 53. Kg3 {[%emt 0:00:07]} Rb7 {[%emt 0:00:32]} 54. Kh4 {[%emt 0:00:10]} Rd7 {[%emt 0:00:24]} 55. Kg5 {[%emt 0:00:21]} f5 {[%emt 0:01:09]} 56. Qh6+ {[%emt 0:00:28]} Kg8 {[%emt 0:00:04]} 57. gxf5 {[%emt 0:00:32]} exf5 {[%emt 0:00:21]} 58. Qxg6+ {[%emt 0:01:36]} Kh8 {[%emt 0:03:01]} 59. Qe8+ {[%emt 0:00:13]} 1-0

[Event "Kragero Resort Chess A 2019"]
[Site "Kragero"]
[Date "2019.02.23"]
[Round "7.26"]
[White "Khachatryan, Marieta"]
[Black "Kizatbay, Abyl"]
[Result "0-1"]
[ECO "B22"]
[WhiteElo "1779"]
[BlackElo "2084"]
[Annotator "NA"]
[PlyCount "112"]
[EventDate "2019.02.20"]
[EventType "swiss"]
[EventCountry "NOR"]
[SourceTitle "playchess.com"]
[Source "ChessBase"]
[SourceQuality "1"]
[TimeControl "5400+30"]

1. e4 {[%emt 0:00:00]} c5 {[%emt 0:00:00]} 2. Nf3 {[%emt 0:00:00]} Nc6 {[%emt 0:00:00]} 3. c3 {[%emt 0:00:14]} Nf6 {[%emt 0:02:18]} 4. e5 {[%emt 0:00:12]} Nd5 {[%emt 0:00:09]} 5. d4 {[%emt 0:00:27]} cxd4 {[%emt 0:00:10]} 6. cxd4 {[%emt 0:00:11]} d6 {[%emt 0:01:50]} 7. exd6 {[%emt 0:01:21]} e6 {[%emt 0:01:59]} 8. Be2 {[%emt 0:04:04]} Bxd6 {[%emt 0:00:28]} 9. O-O {[%emt 0:00:19]} O-O {[%emt 0:00:26]} 10. Nc3 {[%emt 0:00:22]} Bd7 {[%emt 0:10:21]} 11. Nxd5 {[%emt 0:04:59]} exd5 {[%emt 0:00:08]} 12. Qb3 {[%emt 0:03:35]} Bg4 {[%emt 0:08:40]} 13. Be3 {[%emt 0:02:17]} Na5 {[%emt 0:07:41]} 14. Qa4 {[%emt 0:04:13]} Nc4 {[%emt 0:02:11]} 15. Bg5 {[%emt 0:04:55]} Qc7 {[%emt 0:02:10]} 16. h3 {[%emt 0:00:33]} Bd7 {[%emt 0:05:33]} 17. Qc2 {[%emt 0:07:00]} h6 {[%emt 0:01:19]} 18. b3 {[%emt 0:09:46]} Ne5 {[%emt 0:11:47]} 19. Qxc7 {[%emt 0:02:14]} Nxf3+ {[%emt 0:00:28]} 20. Bxf3 {[%emt 0:00:05]} Bxc7 {[%emt 0:00:17]} 21. Be3 {[%emt 0:01:42]} Be6 {[%emt 0:01:27]} 22. Rac1 {[%emt 0:00:16]} Rac8 {[%emt 0:06:52]} 23. Rfd1 {[%emt 0:01:49]} Rfd8 {[%emt 0:01:14]} 24. Kf1 {[%emt 0:01:12]} Kf8 {[%emt 0:01:06]} 25. Rc2 {[%emt 0:03:00]} Bd6 {[%emt 0:02:16]} 26. Rdc1 {[%emt 0:03:57]} Rxc2 {[%emt 0:00:47]} 27. Rxc2 {[%emt 0:00:04]} Ke7 {[%emt 0:01:57]} 28. Ke2 {[%emt 0:07:19]} Kd7 {[%emt 0:02:53]} 29. Rc1 {[%emt 0:03:34]} Ba3 {[%emt 0:00:43]} 30. Rc3 {[%emt 0:00:22]} Bb4 {[%emt 0:00:41]} 31. Rc1 {[%emt 0:00:10]} Bd6 {[%emt 0:01:07]} 32. g3 {[%emt 0:03:41]} b5 {[%emt 0:04:55]} 33. g4 {[%emt 0:02:40]} a5 {[%emt 0:02:14]} 34. Kd1 {[%emt 0:00:36]} Ra8 {[%emt 0:01:13]} 35. Be2 {[%emt 0:00:13]} Rb8 {[%emt 0:01:19]} 36. Rb1 {[%emt 0:04:21]} f5 {[%emt 0:03:07]} 37. f3 {[%emt 0:00:11]} fxg4 {[%emt 0:01:55]} 38. fxg4 {[%emt 0:00:30]} Kc6 {[%emt 0:01:39]} 39. Bd2 {[%emt 0:00:41]} Kb6 {[%emt 0:01:39]} 40. a4 {[%emt 0:00:27]} Bd7 {[%emt 0:01:01]} 41. Kc2 {[%emt 0:10:35]} Rf8 {[%emt 0:01:09]} 42. axb5 {[%emt 0:05:44]} Rf2 {[%emt 0:01:54]} 43. Re1 {[%emt 0:01:04]} Bxb5 {[%emt 0:00:40]} 44. Bxb5 {[%emt 0:01:22]} Kxb5 {[%emt 0:00:24]} 45. Kd3 {[%emt 0:00:27]} Rxd2+ {[%emt 0:00:25]} 46. Kxd2 {[%emt 0:00:18]} Bb4+ {[%emt 0:00:05]} 47. Kd1 {[%emt 0:00:15]} Bxe1 {[%emt 0:00:05]} 48. Kxe1 {[%emt 0:00:03]} Kb4 {[%emt 0:00:04]} 49. Kd2 {[%emt 0:00:04]} Kxb3 {[%emt 0:00:04]} 50. Kc1 {[%emt 0:00:07]} Kc3 {[%emt 0:00:07]} 51. Kb1 {[%emt 0:00:05]} Kxd4 {[%emt 0:00:04]} 52. Ka2 {[%emt 0:00:06]} Kc3 {[%emt 0:00:07]} 53. Kb1 {[%emt 0:00:05]} d4 {[%emt 0:00:03]} 54. Kc1 {[%emt 0:00:04]} d3 {[%emt 0:00:03]} 55. Kd1 {[%emt 0:00:05]} a4 {[%emt 0:00:03]} 56. Kc1 {[%emt 0:00:05]} a3 {[%emt 0:00:03]} 0-1

[Event "Kragero Resort Chess A 2019"]
[Site "Kragero"]
[Date "2019.02.23"]
[Round "7.27"]
[White "Sebastian, Andreas"]
[Black "Tenold, Andreas"]
[Result "1/2-1/2"]
[ECO "D02"]
[WhiteElo "1962"]
[BlackElo "1822"]
[Annotator "NA"]
[PlyCount "76"]
[EventDate "2019.02.20"]
[EventType "swiss"]
[EventCountry "NOR"]
[SourceTitle "playchess.com"]
[Source "ChessBase"]
[SourceQuality "1"]
[TimeControl "5400+30"]

1. d4 {[%emt 0:01:54]} Nf6 {[%emt 0:00:00]} 2. Bf4 {[%emt 0:01:01]} e6 {[%emt 0:00:24]} 3. e3 {[%emt 0:00:42]} c5 {[%emt 0:00:15]} 4. c3 {[%emt 0:07:39]} Nc6 {[%emt 0:00:24]} 5. Nd2 {[%emt 0:00:11]} d5 {[%emt 0:00:11]} 6. Ngf3 {[%emt 0:00:11]} Bd6 {[%emt 0:00:21]} 7. Bg3 {[%emt 0:00:36]} O-O {[%emt 0:01:10]} 8. Bd3 {[%emt 0:00:07]} b6 {[%emt 0:08:11]} 9. Qe2 {[%emt 0:00:23]} Bb7 {[%emt 0:01:09]} 10. e4 {[%emt 0:00:56]} dxe4 {[%emt 0:04:39]} 11. Nxe4 {[%emt 0:01:12]} Be7 {[%emt 0:05:37]} 12. Nxf6+ {[%emt 0:07:25]} Bxf6 {[%emt 0:01:00]} 13. dxc5 {[%emt 0:00:11]} bxc5 {[%emt 0:00:45]} 14. O-O {[%emt 0:00:11]} Qe7 {[%emt 0:03:16]} 15. Nd2 {[%emt 0:00:36]} Rad8 {[%emt 0:07:45]} 16. Nc4 {[%emt 0:10:35]} e5 {[%emt 0:11:30]} 17. Be4 {[%emt 0:05:02]} Ba6 {[%emt 0:10:42]} 18. b3 {[%emt 0:06:09]} Na5 {[%emt 0:01:39]} 19. Rfd1 {[%emt 0:01:18]} Nxc4 {[%emt 0:01:32]} 20. bxc4 {[%emt 0:00:31]} Rxd1+ {[%emt 0:08:22]} 21. Rxd1 {[%emt 0:00:24]} Rd8 {[%emt 0:02:11]} 22. Bd5 {[%emt 0:01:15]} e4 {[%emt 0:03:16]} 23. Qc2 {[%emt 0:07:39]} e3 {[%emt 0:04:41]} 24. Re1 {[%emt 0:01:49]} exf2+ {[%emt 0:01:17]} 25. Qxf2 {[%emt 0:03:05]} Qf8 {[%emt 0:06:04]} 26. Qe3 {[%emt 0:07:28]} Rc8 {[%emt 0:04:12]} 27. h4 {[%emt 0:05:38]} h6 {[%emt 0:02:37]} 28. h5 {[%emt 0:05:20]} Qd8 {[%emt 0:01:11]} 29. Bxf7+ {[%emt 0:00:49]} Kh8 {[%emt 0:02:12]} 30. Qe6 {[%emt 0:04:20]} Bxc3 {[%emt 0:03:43]} 31. Qxa6 {[%emt 0:04:19]} Bxe1 {[%emt 0:00:29]} 32. Bxe1 {[%emt 0:03:39]} Rb8 {[%emt 0:01:57]} 33. Qg6 {[%emt 0:01:11]} Qd1 {[%emt 0:01:16]} 34. Qe6 {[%emt 0:02:38]} Rf8 {[%emt 0:00:46]} 35. Qe7 {[%emt 0:00:18]} Rxf7 {[%emt 0:00:48]} 36. Qe8+ {[%emt 0:01:30]} Kh7 {[%emt 0:00:21]} 37. Qxf7 {[%emt 0:01:07]} Qxe1+ {[%emt 0:00:03]} 38. Kh2 {[%emt 0:00:07]} Qh4+ {[%emt 0:00:45]} 1/2-1/2

[Event "Kragero Resort Chess A 2019"]
[Site "Kragero"]
[Date "2019.02.23"]
[Round "7.28"]
[White "Krivenko, Dion"]
[Black "Schouten, Mathias Lind"]
[Result "1/2-1/2"]
[ECO "C00"]
[WhiteElo "1725"]
[BlackElo "1943"]
[Annotator "NA"]
[PlyCount "79"]
[EventDate "2019.02.20"]
[EventType "swiss"]
[EventCountry "NOR"]
[SourceTitle "playchess.com"]
[Source "ChessBase"]
[SourceQuality "1"]
[TimeControl "5400+30"]

1. e4 {[%emt 0:00:00]} e6 {[%emt 0:00:40]} 2. d3 {[%emt 0:00:00]} d5 {[%emt 0:00:39]} 3. Nd2 {[%emt 0:00:00]} b6 {[%emt 0:01:42]} 4. Ngf3 {[%emt 0:00:15]} Bb7 {[%emt 0:00:30]} 5. g3 {[%emt 0:03:06]} Nf6 {[%emt 0:00:22]} 6. e5 {[%emt 0:00:52]} Nfd7 {[%emt 0:00:12]} 7. Bg2 {[%emt 0:00:30]} c5 {[%emt 0:00:57]} 8. O-O {[%emt 0:00:51]} Nc6 {[%emt 0:00:27]} 9. Re1 {[%emt 0:00:22]} Qc7 {[%emt 0:00:44]} 10. Qe2 {[%emt 0:00:24]} Be7 {[%emt 0:00:21]} 11. Nf1 {[%emt 0:00:19]} O-O {[%emt 0:01:07]} 12. Bf4 {[%emt 0:02:04]} Rfd8 {[%emt 0:01:51]} 13. h4 {[%emt 0:15:24]} h6 {[%emt 0:01:15]} 14. h5 {[%emt 0:01:19]} Nf8 {[%emt 0:06:24]} 15. N1h2 {[%emt 0:01:20]} Rd7 {[%emt 0:05:24]} 16. Ng4 {[%emt 0:01:45]} Qd8 {[%emt 0:03:28]} 17. Qd2 {[%emt 0:02:47]} Nd4 {[%emt 0:02:24]} 18. Nxd4 {[%emt 0:10:40]} cxd4 {[%emt 0:00:05]} 19. Nh2 {[%emt 0:04:33]} b5 {[%emt 0:01:18]} 20. Nf3 {[%emt 0:01:51]} Qb6 {[%emt 0:00:26]} 21. g4 {[%emt 0:00:41]} Nh7 {[%emt 0:01:41]} 22. g5 {[%emt 0:03:01]} hxg5 {[%emt 0:03:10]} 23. Nxg5 {[%emt 0:01:45]} Rc8 {[%emt 0:00:15]} 24. Nxh7 {[%emt 0:03:06]} Kxh7 {[%emt 0:00:06]} 25. h6 {[%emt 0:01:55]} g6 {[%emt 0:00:58]} 26. Bg5 {[%emt 0:01:08]} Qd8 {[%emt 0:02:14]} 27. f4 {[%emt 0:04:27]} Rdc7 {[%emt 0:03:25]} 28. Rac1 {[%emt 0:00:57]} b4 {[%emt 0:10:37]} 29. Bh3 {[%emt 0:01:36]} Bc6 {[%emt 0:04:32]} 30. Qg2 {[%emt 0:02:58]} Ba4 {[%emt 0:02:10]} 31. b3 {[%emt 0:01:25]} Be8 {[%emt 0:01:34]} 32. Re2 {[%emt 0:05:41]} Rc5 {[%emt 0:01:41]} 33. Bxe7 {[%emt 0:04:26]} Qxe7 {[%emt 0:00:11]} 34. f5 {[%emt 0:00:15]} exf5 {[%emt 0:01:42]} 35. Bxf5 {[%emt 0:00:16]} Bd7 {[%emt 0:03:10]} 36. Bxd7 {[%emt 0:05:32]} Qxd7 {[%emt 0:00:05]} 37. Qf3 {[%emt 0:01:37]} Qe7 {[%emt 0:04:12]} 38. Qg4 {[%emt 0:05:51]} R5c6 {[%emt 0:08:43]} 39. Qg2 {[%emt 0:02:57]} Re6 {[%emt 0:03:39]} 40. Rf1 {[%emt 0:02:27]} 1/2-1/2